lending/lending_fUSD_20251015
["ID","MTS","AMOUNT","RATE_DAILY","PERIOD"]
[391322914,1760524240773,-500.0,0.00014973,2]
[391322915,1760524240788,-500.0,0.00014973,2]
[391322916,1760524240799,-258.43761706,0.00014973,2]
[391322918,1760524240809,-500.0,0.00014973,2]
[391322919,1760524240818,-500.0,0.00014973,2]
[391322920,1760524240830,-500.0,0.00014973,2]
[391322921,1760524240840,-500.0,0.00014973,2]
[391322922,1760524240850,-501.63734862,0.00014973,2]
[391322923,1760524240859,-500.0,0.00014973,2]
[391322924,1760524240869,-500.0,0.00014973,2]
[391322925,1760524240879,-500.0,0.00014973,2]
[391322926,1760524240888,-508.49687865,0.00014973,2]
[391322927,1760524240898,-500.0,0.00014973,2]
[391322928,1760524240907,-500.0,0.00014973,2]
[391322929,1760524240916,-500.0,0.00014973,2]
[391322930,1760524240926,-486.62196651,0.00014973,2]
[391322931,1760524240936,-500.0,0.00014973,2]
[391322932,1760524240945,-3847.94637054,0.00014988,2]
[391322933,1760524240954,-816.0,0.0001499,2]
[391322935,1760524241393,-2545.0,0.0001499,2]
[391322936,1760524241485,-1182.0,0.0001499,2]
[391322937,1760524241498,-864.0,0.0001499,2]
[391322938,1760524241507,-2049.0,0.0001499,2]
[391322939,1760524241517,-1267.0,0.0001499,2]
[391322940,1760524241526,-789.264,0.0001499,2]
[391322941,1760524241535,-3407.0,0.0001499,2]
[391322942,1760524241545,-1210.0,0.00015,2]
[391322943,1760524241554,-217.96333616,0.00015,2]
[391322944,1760524241563,-1087197.09401385,0.00015,2]
[391322945,1760524241574,-192686.11761499,0.00015,2]
[391322946,1760524241585,-4220.76174618,0.00015,2]
[391322947,1760524241596,-1679.69,0.00015,2]
[391322949,1760524243311,-773.0,0.0001499,2]
[391322950,1760524243320,-16506.68544723,0.00015,2]
[391322951,1760524243332,-3718.81210075,0.00015,2]
[391322952,1760524243369,-413.413,0.00015,2]
[391322953,1760524243475,-529.3941732,0.00015,2]
[391322954,1760524243530,-606.53985862,0.00015,2]
[391322955,1760524243541,-28296.10048388,0.00015,2]
[391322956,1760524243585,-32683.80160774,0.00015,2]
[391322970,1760524246342,-163.63540172,0.0001487,2]
[391322971,1760524246352,-263.71624361,0.000149,2]
[391322972,1760524246402,-986.07943576,0.000149,2]
[391322973,1760524246411,-394.92645086,0.00015,2]
[391322974,1760524246423,-2011.04870545,0.00015,2]
[391322975,1760524246457,-20579.26161016,0.00015,2]
[391322976,1760524246468,-21093.73509112,0.00015,2]
[391322977,1760524246479,-457.90505437,0.00015,2]
[391322978,1760524246491,-22428.51558007,0.00015,2]
[391322979,1760524246518,-8754.58771938,0.00015,2]
[391322980,1760524246572,-2099.03,0.00015,2]
[391322983,1760524246584,-1218.57340033,0.00015,2]
[391323040,1760524443779,572.74804889,0.00030284,120]
[391323041,1760524522344,150.0,0.00027397,120]
[391323042,1760524522525,150.0,0.00027397,120]
[391323043,1760524522694,150.0,0.00027397,120]
[391323044,1760524522895,150.0,0.00027397,120]
[391323045,1760524524081,150.0,0.00027397,120]
[391323046,1760524524266,250.0,0.00027397,120]
[391323061,1760524664126,2117.4,0.00030258,30]
[391323066,1760524974377,151.213437,0.00030263,30]
[391323067,1760524977138,151.213437,0.00030263,30]
[391323068,1760524979793,151.213437,0.00030263,30]
[391323069,1760524982086,151.213437,0.00030263,30]
[391323070,1760524983452,151.213437,0.00030263,30]
[391323071,1760524987923,151.213437,0.00030263,30]
[391323072,1760524995104,151.21343471,0.00030263,30]
[391323117,1760525411319,225.11231405,0.00024679,120]
[391323142,1760525431464,-1256.444643,0.0001363,2]
[391323143,1760525431473,-166.66,0.00013699,2]
[391323144,1760525431482,-2500.0,0.00013778,2]
[391323145,1760525431492,-2082.34043537,0.00013778,2]
[391323147,1760525431503,-417.65956463,0.00013778,2]
[391323149,1760525431512,-110.52134575,0.00013778,2]
[391323151,1760525431523,-877.52823262,0.00013778,2]
[391323153,1760525431550,-791.14462209,0.00013778,2]
[391323154,1760525431561,-720.80579954,0.00013778,2]
[391323155,1760525431570,-166.66,0.00013851,2]
[391323156,1760525431579,-1200.0,0.00013983,2]
[391323157,1760525431587,-300.0,0.00013983,2]
[391323158,1760525431596,-4999.81,0.00013984,2]
[391323159,1760525431605,-2751.0,0.00013995,2]
[391323160,1760525431614,-6395.43,0.00013995,2]
[391323161,1760525431623,-200.0,0.00014,2]
[391323162,1760525431632,-166.66,0.00014003,2]
[391323163,1760525431642,-165.5,0.00014098,2]
[391323164,1760525431651,-200.0,0.00014099,2]
[391323165,1760525431660,-166.66,0.00014155,2]
[391323166,1760525431670,-335.71380128,0.00014249,2]
[391323167,1760525431679,-277.35679052,0.00014249,2]
[391323168,1760525431687,-166.66,0.00014307,2]
[391323169,1760525431696,-166.67,0.00014365,2]
[391323170,1760525431705,-166.66,0.00014459,2]
[391323171,1760525431714,-524.0,0.00014738,2]
[391323172,1760525431723,-150.0,0.0001477,2]
[391323173,1760525431733,-9222.3583,0.00014771,2]
[391323174,1760525431742,-1000.0,0.00014771,2]
[391323175,1760525431751,-286.0,0.00014888,2]
[391323176,1760525431760,-322.6107,0.00014891,2]
[391323177,1760525431769,-621.84813642,0.00014891,2]
[391323178,1760525431778,-173.44364176,0.000149,2]
[391323179,1760525431788,-761.00840996,0.000149,2]
[391323180,1760525431797,-9968.33641256,0.000149,2]
[391323181,1760525431806,-5000.0,0.000149,2]
[391323182,1760525431815,-1614.5092639,0.000149,2]
[391323183,1760525431823,-359.82982366,0.000149,2]
[391323184,1760525431832,-168.0,0.00014917,2]
[391323185,1760525431841,-2592.494,0.0001496,2]
[391323186,1760525431851,-178.726,0.00014965,2]
[391323187,1760525431860,-19585.62009872,0.00014968,2]
[391323188,1760525431869,-680.52936302,0.0001497,2]
[391323189,1760525431878,-500.0,0.00014973,2]
[391323190,1760525431888,-500.0,0.00014973,2]
[391323191,1760525431897,-500.0,0.00014973,2]
[391323192,1760525431906,-500.0,0.00014973,2]
[391323193,1760525431916,-500.0,0.00014973,2]
[391323194,1760525431926,-500.0,0.00014973,2]
[391323195,1760525431935,-500.0,0.00014973,2]
[391323196,1760525431944,-500.0,0.00014973,2]
[391323198,1760525431954,-258.43761706,0.00014973,2]
[391323200,1760525431964,-500.0,0.00014973,2]
[391323202,1760525431973,-500.0,0.00014973,2]
[391323204,1760525431982,-500.0,0.00014973,2]
[391323206,1760525431991,-500.0,0.00014973,2]
[391323208,1760525432000,-501.63734862,0.00014973,2]
[391323210,1760525432009,-500.0,0.00014973,2]
[391323212,1760525432019,-508.49687865,0.00014973,2]
[391323213,1760525432027,-486.62196651,0.00014973,2]
[391323214,1760525432036,-500.0,0.00014973,2]
[391323215,1760525432045,-1267.0,0.0001499,2]
[391323216,1760525432054,-2049.0,0.0001499,2]
[391323217,1760525432065,-771.264,0.0001499,2]
[391323218,1760525432074,-3407.0,0.0001499,2]
[391323219,1760525432084,-1309.0,0.0001499,2]
[391323220,1760525432094,-604.0,0.0001499,2]
[391323221,1760525432103,-1717.481,0.0001499,2]
[391323222,1760525432112,-571.0,0.0001499,2]
[391323223,1760525432122,-1182.0,0.0001499,2]
[391323224,1760525432132,-2545.0,0.0001499,2]
[391323225,1760525432144,-902.0,0.0001499,2]
[391323226,1760525432153,-816.0,0.0001499,2]
[391323227,1760525432162,-4014.0,0.0001499,2]
[391323228,1760525432171,-773.0,0.0001499,2]
[391323229,1760525432181,-6135.64544176,0.0001499,2]
[391323230,1760525432193,-307.35455824,0.0001499,2]
[391323231,1760525432203,-721.97842604,0.0001499,2]
[391323232,1760525432214,-721.97842604,0.0001499,2]
[391323233,1760525432223,-721.97842604,0.0001499,2]
[391323234,1760525432232,-2500.0,0.00014993,2]
[391323235,1760525432242,-910.12,0.00014995,2]
[391323236,1760525432251,-16646.70074781,0.00014997,2]
[391323237,1760525432262,-1626.68131529,0.00014997,2]
[391323238,1760525432301,-1582.15,0.00014997,2]
[391323239,1760525432312,-515.71559737,0.00014997,2]
[391323240,1760525432323,-2172.30999241,0.00014997,2]
[391323241,1760525432343,-7106.58234712,0.00014997,2]
[391323242,1760525432352,-151.0,0.00014997,2]
[391323243,1760525432361,-510.72277909,0.00014999,2]
[391323244,1760525432371,-500.0,0.00014999,2]
[391323245,1760525432379,-398.21527499,0.00014999,2]
[391323246,1760525432388,-520.90496103,0.00014999,2]
[391323247,1760525432397,-500.0,0.00014999,2]
[391323248,1760525432406,-500.0,0.00014999,2]
[391323249,1760525432415,-624.4871779,0.00014999,2]
[391323250,1760525432424,-500.0,0.00014999,2]
[391323251,1760525432433,-500.0,0.00014999,2]
[391323252,1760525432442,-500.0,0.00014999,2]
[391323253,1760525432451,-230.85755895,0.00014999,2]
[391323254,1760525432460,-500.0,0.00014999,2]
[391323255,1760525432469,-500.0,0.00014999,2]
[391323256,1760525432478,-200.0,0.00014999,2]
[391323257,1760525432487,-150.0,0.00014999,2]
[391323258,1760525432496,-161.39327403,0.00014999,2]
[391323259,1760525432505,-189.85625879,0.00014999,2]
[391323260,1760525432514,-565.95414233,0.00014999,2]
[391323261,1760525432523,-178.53268034,0.00014999,2]
[391323262,1760525432531,-500.0,0.00014999,2]
[391323263,1760525432540,-155.0,0.00014999,2]
[391323264,1760525432549,-1664.0,0.00015,2]
[391323265,1760525432558,-234.75897812,0.00015,2]
[391323266,1760525432567,-5519.14682222,0.00015,2]
[391323269,1760525437426,-556.0,0.0001499,2]
[391323270,1760525437436,-669418.11622021,0.00015,2]
[391323275,1760525437584,-558.51498012,0.00015,2]
[391323276,1760525437595,-490.70272024,0.00015,2]
[391323277,1760525437638,-1384.39075627,0.00015,2]
[391323278,1760525437649,-6321.92014268,0.00015,2]
[391323279,1760525437692,-1834.0,0.00015,2]
[391323280,1760525437704,-4755.0347196,0.00015,2]
[391323287,1760525440429,-169.8079781,0.00014991,3]
[391323288,1760525440439,-1773.47116258,0.00015,2]
[391323289,1760525440458,-40964.72086456,0.00015,2]
[391323290,1760525440469,-3908.5703216,0.00015,2]
[391323291,1760525440567,-33780.0,0.00015,2]
[391323292,1760525440578,-1116258.32533139,0.00015,2]
[391323293,1760525442554,-168.03907613,0.00013678,2]
[391323294,1760525442563,-81.96092387,0.00015,2]
[391323295,1760525442962,-275.9069811,0.00015,2]
[391323296,1760525442992,-12386.46392249,0.00015,2]
[391323297,1760525443003,-595.36836,0.00015,2]
[391323298,1760525443018,-21542.43345901,0.00015,2]
[391323299,1760525443028,-3457.56774099,0.00015,2]
[391323300,1760525443059,-202516.5707759,0.00015,2]
[391323302,1760525445490,-207.0,0.0001499,2]
[391323303,1760525445499,-150.0,0.0001499,2]
[391323304,1760525445508,-93.0,0.00015,2]
[391323305,1760525445542,-1032.37523999,0.00015,2]
[391323306,1760525445596,-6759.75708031,0.00015,2]
[391323307,1760525445607,-1750.0,0.00015,2]
[391323308,1760525445651,-1603.32,0.00015,2]
[391323309,1760525445704,-1220.0,0.00015,2]
[391323310,1760525445758,-17263.76371529,0.00015,2]
[391323311,1760525445768,-150.0,0.00015,2]
[391323312,1760525445777,-3319.22621654,0.00015,2]
[391323313,1760525445785,-1050024.24136146,0.00015,2]
[391323314,1760525445796,-19780.39463738,0.00015,2]
[391323388,1760525463406,200.0,0.00030263,120]
[391323396,1760525659738,-160.0,0.00014113,3]
[391323405,1760525762355,200.0,0.00030263,120]
[391323407,1760526004694,50000.0,0.00030229,30]
[391323408,1760526009076,50000.0,0.00030229,31]
[391323409,1760526062105,200.0,0.00030229,120]
[391323410,1760526197887,353.63478,0.00030232,60]
[391323411,1760526328366,269.0,0.00027,120]
[391323420,1760526361387,200.0,0.00030232,120]
[391323433,1760526631662,-151.35613894,0.00013649,2]
[391323434,1760526631672,-494.3769553,0.00013661,2]
[391323435,1760526631716,-1505.6230447,0.00013661,2]
[391323436,1760526631727,-250.0,0.00013674,2]
[391323437,1760526631737,-1600.0,0.00013687,2]
[391323438,1760526631747,-568.23,0.00013699,2]
[391323439,1760526631756,-250.0,0.00013702,2]
[391323440,1760526631766,-372.06569057,0.00013708,2]
[391323441,1760526631775,-300.0,0.00013749,2]
[391323442,1760526631786,-300.0,0.00013749,2]
[391323443,1760526631795,-1200.0,0.00013749,2]
[391323444,1760526631805,-18656.42,0.0001375,2]
[391323445,1760526631815,-500.0,0.00013851,2]
[391323446,1760526631824,-150.0,0.00013955,2]
[391323447,1760526631833,-250.0,0.00014047,7]
[391323448,1760526631843,-506.0,0.00014113,3]
[391323449,1760526631852,-2599.61,0.00014189,2]
[391323450,1760526631861,-1753.17724245,0.00014249,2]
[391323451,1760526631871,-621.78829552,0.00014249,2]
[391323452,1760526631881,-286.64953216,0.00014249,2]
[391323453,1760526631890,-500.0,0.00014249,2]
[391323454,1760526631900,-353.0,0.00014569,2]
[391323455,1760526631909,-168.0,0.00014576,2]
[391323456,1760526631919,-500.0,0.00014797,2]
[391323457,1760526631929,-189.53975238,0.00014826,2]
[391323458,1760526631939,-189.53975238,0.00014831,2]
[391323459,1760526631950,-189.53975238,0.00014856,2]
[391323460,1760526631960,-631.79917461,0.00014865,2]
[391323461,1760526631970,-631.79917461,0.00014876,2]
[391323462,1760526631979,-228.8,0.00014885,2]
[391323463,1760526631990,-151.0,0.00014891,2]
[391323464,1760526632000,-151.0,0.00014891,2]
[391323465,1760526632010,-322.6107,0.00014891,2]
[391323466,1760526632020,-631.79917461,0.00014895,2]
[391323467,1760526632030,-677.47441319,0.00014898,2]
[391323468,1760526632040,-150.0,0.00014899,2]
[391323470,1760526632050,-625.0,0.000149,2]
[391323472,1760526632059,-158.05184532,0.000149,2]
[391323474,1760526632069,-31925.29830707,0.000149,2]
[391323476,1760526632079,-5000.0,0.000149,2]
[391323478,1760526632089,-353.0,0.0001492,2]
[391323480,1760526632099,-2419.895,0.0001497,2]
[391323482,1760526632109,-212.211,0.0001497,2]
[391323484,1760526632119,-1557.80448,0.0001497,2]
[391323486,1760526632129,-358.26510893,0.00014973,2]
[391323488,1760526632139,-500.0,0.00014973,2]
[391323490,1760526632148,-500.0,0.00014973,2]
[391323492,1760526632157,-55.13607604,0.00014973,2]
[391323494,1760526632170,-444.86392396,0.00014973,2]
[391323497,1760526632180,-500.0,0.00014973,2]
[391323499,1760526632190,-500.0,0.00014973,2]
[391323501,1760526632202,-500.0,0.00014973,2]
[391323503,1760526632212,-500.0,0.00014973,2]
[391323505,1760526632222,-500.0,0.00014973,2]
[391323507,1760526632232,-500.0,0.00014973,2]
[391323509,1760526632241,-500.0,0.00014973,2]
[391323511,1760526632251,-500.0,0.00014973,2]
[391323513,1760526632261,-500.0,0.00014973,2]
[391323515,1760526632270,-168.0,0.0001498,2]
[391323517,1760526632280,-500.0,0.00014985,2]
[391323519,1760526632289,-200.0,0.0001499,2]
[391323521,1760526632299,-203.06,0.0001499,2]
[391323523,1760526632308,-151.696,0.0001499,2]
[391323525,1760526632317,-206.279,0.0001499,2]
[391323527,1760526632326,-250.0,0.0001499,2]
[391323529,1760526632335,-150.643,0.0001499,2]
[391323531,1760526632344,-254.29,0.0001499,2]
[391323533,1760526632353,-184.491,0.0001499,2]
[391323535,1760526632362,-188.03,0.0001499,2]
[391323537,1760526632372,-208.233,0.0001499,2]
[391323539,1760526632381,-161.466,0.0001499,2]
[391323541,1760526632390,-208.893,0.0001499,2]
[391323542,1760526632400,-250.0,0.0001499,2]
[391323544,1760526632410,-217.321,0.0001499,2]
[391323547,1760526632422,-213.139,0.0001499,2]
[391323549,1760526632432,-2049.0,0.0001499,2]
[391323551,1760526632444,-1267.0,0.0001499,2]
[391323553,1760526632455,-3407.0,0.0001499,2]
[391323554,1760526632465,-749.0,0.0001499,2]
[391323556,1760526632475,-571.0,0.0001499,2]
[391323558,1760526632489,-1309.0,0.0001499,2]
[391323560,1760526632502,-604.0,0.0001499,2]
[391323562,1760526632513,-1588.0,0.0001499,2]
[391323564,1760526632525,-816.0,0.0001499,2]
[391323566,1760526632534,-902.0,0.0001499,2]
[391323568,1760526632544,-1182.0,0.0001499,2]
[391323570,1760526632553,-2545.0,0.0001499,2]
[391323572,1760526632564,-4014.0,0.0001499,2]
[391323574,1760526632574,-556.0,0.0001499,2]
[391323576,1760526632583,-773.0,0.0001499,2]
[391323578,1760526632592,-151.0,0.00014997,2]
[391323580,1760526632602,-1254.76831777,0.00014999,5]
[391323582,1760526632611,-150.0,0.00014999,2]
[391323584,1760526632621,-194.79871403,0.00014999,2]
[391323586,1760526632630,-188.72989791,0.00014999,2]
[391323588,1760526632640,-176.79786086,0.00014999,2]
[391323590,1760526632650,-150.0,0.00014999,2]
[391323592,1760526632658,-150.0,0.00014999,2]
[391323594,1760526632668,-150.0,0.00014999,2]
[391323596,1760526632677,-150.0,0.00014999,2]
[391323598,1760526632686,-150.0,0.00014999,2]
[391323599,1760526632698,-197.0455207,0.00014999,2]
[391323600,1760526632708,-1254.76831777,0.00014999,5]
[391323601,1760526632718,-1572.0,0.00015,2]
[391323602,1760526632728,-45893.32510259,0.00015,2]
[391323603,1760526632742,-55688.82942368,0.00015,2]
[391323604,1760526632751,-151.0,0.00015,2]
[391323605,1760526632759,-69538.60419237,0.00015,2]
[391323606,1760526632771,-666.0,0.00015,2]
[391323607,1760526632794,-3450.3,0.00015,2]
[391323608,1760526632820,-544.33663411,0.00015,2]
[391323609,1760526632831,-627.68208494,0.00015,2]
[391323610,1760526632845,-12842.68877091,0.00015,2]
[391323611,1760526632856,-51391.62683734,0.00015,2]
[391323612,1760526632866,-803.51,0.00015,2]
[391323620,1760526637618,-442.09362037,0.0001499,2]
[391323623,1760526637997,-1000.0,0.0001499,2]
[391323624,1760526638008,-999.92,0.0001499,2]
[391323625,1760526638023,-1150.0,0.0001499,2]
[391323629,1760526639675,-2850.98637963,0.0001499,2]
[391323630,1760526639686,-165.88,0.0001499,2]
[391323631,1760526639696,-165.88,0.0001499,2]
[391323632,1760526639707,-165.88,0.0001499,2]
[391323633,1760526639717,-600.25562037,0.00015,2]
[391323634,1760526639938,-259.19229962,0.00015,2]
[391323635,1760526639951,-15044.67078581,0.00015,2]
[391323636,1760526639961,-1101213.65454558,0.00015,2]
[391323685,1760526645868,-14184.62676995,0.00015,2]
[391323687,1760526645880,-16853.4908707,0.00015,2]
[391323690,1760526645892,-21780.5,0.00015,2]
[391323701,1760526762184,158.82,7.026e-05,2]
[391323702,1760526762372,158.82,7.528e-05,2]
[391323703,1760526762602,158.82,8.03e-05,2]
[391323704,1760526762824,158.82,8.531e-05,2]
[391323705,1760526763031,158.82,9.033e-05,2]
[391323706,1760526763248,158.82,9.535e-05,2]
[391323707,1760526763450,158.82,0.00010037,2]
[391323708,1760526763649,158.82,0.00010539,2]
[391323709,1760526763846,158.82,0.00011041,2]
[391323710,1760526764068,158.82,0.00011542,2]
[391323711,1760526764290,158.82,0.00012044,2]
[391323712,1760526764472,158.82,0.00012546,2]
[391323713,1760526817819,500.0,0.00026889,120]
[391323714,1760526905256,300.0,0.00012545,2]
[391323715,1760526928097,300.0,0.00012544,2]
[391323716,1760526963718,200.0,0.00030235,120]
[391323717,1760527114790,150.0,0.00027397,120]
[391323718,1760527115624,150.0,0.00027397,120]
[391323719,1760527115694,200.0,0.00027397,120]
[391323720,1760527195298,-177.43567532,0.00012793,2]
[391323721,1760527203126,8961.19591959,0.00030229,60]
[391323722,1760527261875,200.0,0.00030229,120]
[391323723,1760527270327,-122.56432468,0.00012793,2]
[391323724,1760527270363,-250.0,0.00012921,2]
[391323725,1760527270388,-150.0,0.00012921,2]
[391323726,1760527270413,-124.09550266,0.00013048,2]
[391323727,1760527287073,-244.11976489,0.00013047,2]
[391323728,1760527375898,-55.88023511,0.00013047,2]
[391323729,1760527375921,-34.72449734,0.00013048,2]
[391323730,1760527375945,-158.82,0.0001355,2]
[391323731,1760527375968,-164.72,0.00013628,2]
[391323732,1760527375989,-12.11051528,0.00013711,2]
[391323733,1760527378759,-207.81237937,0.00013711,2]
[391323734,1760527380238,-177.70063656,0.00013711,2]
[391323735,1760527390797,-188.3549872,0.0001371,2]
[391323736,1760527392292,-111.6450128,0.0001371,2]
[391323737,1760527392315,-48.3549872,0.00013711,2]
[391323738,1760527394219,-372.91733996,0.00013711,2]
[391323739,1760527396110,6548.79119,0.0003023,60]
[391323740,1760527397382,-157.77464258,0.00013711,2]
[391323741,1760527398927,-288.37941474,0.00013711,2]
[391323742,1760527407766,6548.79119,0.0003023,60]
[391323743,1760527420382,-302.0,0.00013711,2]
[391323744,1760527420499,508.997176,0.00026277,120]
[391323745,1760527422607,-302.0,0.00013711,2]
[391323746,1760527426054,-302.0,0.00013711,2]
[391323747,1760527428623,-300.0,0.00013711,2]
[391323748,1760527431009,6548.79119,0.0003023,60]
[391323749,1760527431087,-303.20767531,0.00013711,2]
[391323750,1760527433710,-487.232409,0.00013711,2]
[391323751,1760527433733,-142.90588432,0.00013804,2]
[391323752,1760527439745,6548.79119,0.0003023,60]
[391323753,1760527451851,-107.09411568,0.00013804,2]
[391323754,1760527451873,-200.38126302,0.0001385,2]
[391323755,1760527453931,-194.46217041,0.0001385,2]
[391323756,1760527465325,-166.63261706,0.0001385,2]
[391323757,1760527469204,-255.95304741,0.0001385,2]
[391323758,1760527480358,-311.87619932,0.00013711,2]
[391323759,1760527483471,-175.02466594,0.00013711,2]
[391323760,1760527484648,-13.09913374,0.00013711,2]
[391323761,1760527484672,-443.78365126,0.0001385,2]
[391323762,1760527488457,-253.47309563,0.0001385,2]
[391323763,1760527489980,-255.88023511,0.0001385,2]
[391323764,1760527491407,-300.0,0.0001385,2]
[391323765,1760527496299,-302.0,0.0001385,2]
[391323766,1760527497870,-127.4339201,0.0001385,2]
[391323767,1760527497893,-48.7123834,0.0001385,2]
[391323768,1760527499377,-232.59992373,0.0001385,2]
[391323769,1760527510864,-18.68769287,0.0001385,2]
[391323770,1760527510889,-195.0,0.00013873,2]
[391323771,1760527510914,-9.02857896,0.00013873,2]
[391323772,1760527512369,-290.97142104,0.00013873,2]
[391323773,1760527512390,-9.02857896,0.00013896,2]
[391323774,1760527516595,-215.4245165,0.00013896,2]
[391323775,1760527518622,-366.84385497,0.00013896,2]
[391323782,1760527542021,-317.29,0.00013496,2]
[391323783,1760527543046,-250.0,0.00013496,2]
[391323784,1760527544384,-330.48340147,0.00013496,2]
[391323785,1760527546883,-259.11,0.00013496,2]
[391323786,1760527548291,-500.0,0.00013496,2]
[391323787,1760527550775,-161.36508954,0.00013496,2]
[391323788,1760527553710,-302.0,0.00013496,2]
[391323789,1760527555308,-195.06813115,0.00013496,2]
[391323790,1760527556768,-376.39664348,0.00013496,2]
[391323791,1760527561791,200.0,0.0003023,120]
[391323792,1760527587333,-59.28673436,0.00013496,2]
[391323793,1760527587354,-195.0,0.0001381,2]
[391323794,1760527587375,-122.6648051,0.00013835,2]
[391323795,1760527590651,-178.5973012,0.00013835,2]
[391323796,1760527590671,-52.9276912,0.00013896,2]
[391323797,1760527592229,-131.5341333,0.00013896,2]
[391323798,1760527592258,-63.06840875,0.00013911,2]
[391323799,1760527595362,-167.60418897,0.00013911,2]
[391323800,1760527597835,-457.85196249,0.00013911,2]
[391323801,1760527600349,-138.25256594,0.00013911,2]
[391323802,1760527600372,-18.27743406,0.00013911,2]
[391323803,1760527602240,-163.0,0.00013911,2]
[391323804,1760527604206,-118.72256594,0.00013911,2]
[391323805,1760527604227,-115.77885122,0.00013914,2]
[391323806,1760527606779,-462.94824091,0.00013914,2]
[391323807,1760527609838,-369.52490519,0.00013914,2]
[391323808,1760527612159,-156.57366959,0.00013914,2]
[391323809,1760527613352,-174.35017206,0.00013914,2]
[391323810,1760527614788,-161.13120818,0.00013914,2]
[391323811,1760527625367,-59.69295285,0.00013914,2]
[391323812,1760527625390,-382.32251581,0.00013957,2]
[391323813,1760527626803,-208.79,0.00013957,2]
[391323814,1760527628646,-17.04748419,0.00013957,2]
[391323815,1760527628668,-182.95251581,0.00013982,2]
[391323816,1760527645257,-117.04748419,0.00013982,2]
[391323817,1760527645282,-111.31285737,0.00013987,2]
[391323818,1760527647228,-323.00998445,0.00013987,2]
[391323819,1760527650687,-176.99001555,0.00013987,2]
[391323820,1760527654372,-28.68714263,0.00013987,2]
[391323821,1760527654394,-200.0,0.00014,2]
[391323822,1760527654417,-158.82,0.00014052,2]
[391323823,1760527654441,-112.49285737,0.0001407,2]
[391323824,1760527658790,-300.0,0.00013981,2]
[391323825,1760527658815,-53.11920635,0.0001407,2]
[391323826,1760527661407,-445.80135087,0.0001407,2]
[391323827,1760527663329,-201.08234772,0.0001407,2]
[391323828,1760527668377,-172.28817662,0.0001407,2]
[391323829,1760527670412,-215.21606107,0.0001407,2]
[391323830,1760527670433,-284.78393893,0.0001407,2]
[391323831,1760527671824,-15.21606107,0.0001407,2]
[391323832,1760527671848,-351.1645253,0.00014164,2]
[391323833,1760527690496,-203.38939099,0.00014164,2]
[391323834,1760527693134,-13.98608371,0.00014164,2]
[391323835,1760527693156,-210.93421474,0.00014174,2]
[391323836,1760527694658,-331.12591197,0.00014174,2]
[391323837,1760527699834,-410.30064291,0.00014174,2]
[391323838,1760527701276,-363.70737714,0.00014174,2]
[391323839,1760527704346,-302.29262286,0.00014174,2]
[391323840,1760527708070,-215.86258775,0.00014174,2]
[391323841,1760527710044,-165.77664263,0.00014174,2]
[391323842,1760527710068,-435.33982796,0.00014184,2]
[391323843,1760527712203,-310.22959107,0.00014025,2]
[391323845,1760527716032,-155.72143742,0.00014025,2]
[391323846,1760527716432,19292.73716747,0.00012535,2]
[391323847,1760527717008,-287.36383584,0.00014025,2]
[391323848,1760527718534,-169.06643337,0.00014025,2]
[391323849,1760527742753,-155.89227498,0.00014025,2]
[391323857,1760527751213,-437.06868035,0.00014025,2]
[391323858,1760527753047,-307.20622567,0.00014025,2]
[391323859,1760527754966,-258.71690701,0.00014025,2]